Cogmind - Beta 15 @@@ ROGUE MODE // 2025.08.03 @ 17:43:16 Player: Dadrick Result: Destroyed by Y-64 Sentinel with Wave Gun Performance ------------- Evolutions (5) 2500 Regions Visited (17) 3400 Robots Destroyed (185) 925 Value Destroyed (6262) 6262 Prototype IDs (48) 960 Alien Tech Used (0) 0 Bonus (3518) 3518 TOTAL SCORE: 17565 Bonus ------- High Alert Combat Kills 794 Follower Combat Kills 1693 Network Hubs Disabled 200 Aligned with FarCom 300 Met Imprinter 300 Built Enhanced Grunts 300 Friendly Fire -69 Cogmind --------- Core Integrity 0/1000 Matter 169/300 Energy 100/100 System Corruption 25% Temperature Cool (9) Movement Flying (52) Location -5/Upper Caves Parts ------- > --- POWER (2) -------- (None) > --- PROPULSION (6) --- Makeshift Flight Unit Makeshift Flight Unit > --- UTILITY (6) ------ Improved Hacking Suite > --- WEAPON (3) ------- Advanced Variable Charge Gun Ripper > --- INVENTORY (5) ---- Medium Storage Unit Advanced Sensor Array Improved Transmission Jammer ECM Suite Advanced Shield Generator Peak State ------------ > --- POWER ------------ Micro Fission Core Quantum Reactor > --- PROPULSION ------- Enhanced Flexi-carbon Leg Enhanced Flexi-carbon Leg Enhanced Flexi-carbon Leg Enhanced Flexi-carbon Leg Experimental Myomer Leg Experimental Myomer Leg > --- UTILITY ---------- Medium Storage Unit Improved Target Analyzer Centrium Light Armor Plating Point Defense System Improved Hacking Suite Advanced System Shield > --- WEAPON ----------- Disruptor Cannon Ripper Ripper > --- INVENTORY -------- Micro Fission Core Experimental Gyrokinetic Inverter Advanced Energy Well Advanced Sensor Array ECM Suite Centrium Light Armor Plating Advanced Variable Charge Gun Cooled Particle Cannon Advanced Micro-nuke Launcher Plasma Cutter [Rating: 113] Favorites ----------- Power Reinforced Deuterium Engine Engine Reinforced Deuterium Engine Power Core Micro Fission Core Reactor Quantum Reactor Propulsion Carbon-fiber Leg Treads Improved Treads Leg Carbon-fiber Leg Hover Unit Experimental Gyrokinetic Inverter Flight Unit Improved Cesium-ion Thruster Utility System Shield Device Improved Heat Sink Storage Large Storage Unit Processor 0b10 Alert Chip Hackware System Shield Protection Centrium Medium Armor Plating Weapon Ripper Energy Gun Small Laser Energy Cannon Beam Cannon Ballistic Gun Light Assault Rifle Ballistic Cannon Advanced Assault Cannon Launcher Rocket Launcher Special Weapon Plasma Cutter Impact Weapon Great Maul Slashing Weapon Ripper Build | -11 -10 -10 -10 -9 -8 -7 -7 -7 -7 -6 -6 -6 -6 -6 -6 -5 -5 ------- Run | Yrd Mat Min Exi Min Mat Fac Low Low Zio Pro Fac Ext Cet Arc Hub Fac Upp Slots Evolved 10 | . . . . . 4 2 . . . . 2 . . . . 2 . Power 1 | . . . . . . . . . . . . . . . . 1 . Propulsion 4 | . . . . . 2 1 . . . . 1 . . . . . . Utility 4 | . . . . . 2 1 . . . . 1 . . . . . . Weapon 1 | . . . . . . . . . . . . . . . . 1 . Parts Attached 149 | 7 6 3 . . 18 21 . . 2 1 5 23 10 5 6 39 3 Power 17 | 1 1 . . . 3 2 . . . . . 4 . . 1 5 . Engine 9 | 1 1 . . . 3 1 . . . . . 1 . . . 2 . Core 7 | . . . . . . 1 . . . . . 3 . . . 3 . Reactor 1 | . . . . . . . . . . . . . . . 1 . . Propulsion 51 | 2 1 1 . . 6 7 . . . . 1 11 5 3 2 9 3 Treads 13 | 2 1 1 . . 6 . . . . . . 2 . . . 1 . Leg 24 | . . . . . . . . . . . . 8 5 3 2 6 . Wheel . | . . . . . . . . . . . . . . . . . . Hover 1 | . . . . . . . . . . . . . . . . 1 . Flight 13 | . . . . . . 7 . . . . 1 1 . . . 1 3 Utility 46 | 2 1 1 . . 5 6 . . 2 1 3 5 2 2 1 15 . Device 20 | 1 . 1 . . 2 3 . . 1 1 1 1 1 2 . 6 . Storage 7 | 1 1 . . . . . . . . . . 2 . . . 3 . Processor 8 | . . . . . 2 2 . . . . 1 2 . . . 1 . Hackware 4 | . . . . . . 1 . . . . 1 . . . 1 1 . Protection 7 | . . . . . 1 . . . 1 . . . 1 . . 4 . Artifact . | . . . . . . . . . . . . . . . . . . Weapon 35 | 2 3 1 . . 4 6 . . . . 1 3 3 . 2 10 . Energy Gun 7 | 1 . . . . . . . . . . . . 1 . . 5 . Energy Cannon 7 | . 1 . . . 2 1 . . . . . . . . 1 2 . Ballistic Gun 2 | 1 . . . . 1 . . . . . . . . . . . . Ballistic Cannon 5 | . 1 . . . . 1 . . . . 1 . 1 . . 1 . Launcher 6 | . . 1 . . 1 . . . . . . 1 . . 1 2 . Special Weapon 2 | . 1 . . . . 1 . . . . . . . . . . . Impact Weapon 3 | . . . . . . 2 . . . . . 1 . . . . . Slashing Weapon 3 | . . . . . . 1 . . . . . 1 1 . . . . Piercing Weapon . | . . . . . . . . . . . . . . . . . . Special Melee Weapon . | . . . . . . . . . . . . . . . . . . Unidentified Prototypes 18 | . . . . . 1 2 . . 1 . 1 1 2 1 2 7 . Corrupted Parts 1 | . . . . . . . . . . . . . . . 1 . . System Corruption 3 | . . . . . . . . . . . . . . . 3 . . Parts Lost 57 | . . . . . 7 1 . . . . 1 10 5 1 1 30 1 Power 9 | . . . . . 1 . . . . . . 3 . . 1 4 . Propulsion 25 | . . . . . 3 1 . . . . . 6 4 . . 10 1 Utility 13 | . . . . . 1 . . . . . 1 . . 1 . 10 . Weapon 10 | . . . . . 2 . . . . . . 1 1 . . 6 . Highest Loss Streak 8 | . . . . . 3 1 . . . . 1 4 5 1 1 8 1 To Critical Strikes 1 | . . . . . . . . . . . . . 1 . . . . Average Backups 9 | 1 11 14 13 13 12 11 5 5 5 5 4 5 9 10 9 10 4 Power 1 | . 1 1 1 1 . 1 1 1 1 1 1 . 1 2 1 . . Propulsion 1 | . 2 2 2 2 3 4 1 1 1 1 . . . . . 1 . Utility 3 | . 1 3 3 4 3 2 1 1 1 1 1 1 4 5 4 4 4 Weapon 3 | . 6 7 6 6 4 2 1 1 1 1 1 1 2 1 2 3 . Tool/Special . | . . . . . . . . . . . . . . . . . . Unused Backups 21 | . 1 . 1 . 1 7 . . . . . 2 . 2 . 4 3 Power 1 | . . . . . . . . . . . . 1 . . . . . Propulsion 2 | . . . . . . 2 . . . . . . . . . . . Utility 12 | . . . 1 . . 2 . . . . . 1 . 2 . 3 3 Weapon 6 | . 1 . . . 1 3 . . . . . . . . . 1 . Tool/Special . | . . . . . . . . . . . . . . . . . . Average Slot Usage (%) 94 | . 100 100 100 100 86 92 100 100 100 100 95 89 97 99 99 91 30 Engine 5 | . 14 14 14 14 8 5 . . . . . 2 6 6 5 1 . Core 1 | . . . . . . 1 7 7 7 7 6 2 . . . 5 . Treads 11 | . 28 28 28 28 33 21 . . . . . . 4 . . . . Leg 15 | . . . . . . . . . . . . 18 32 39 40 31 . Flight 5 | . . . . . . 9 38 38 38 38 35 13 . . . . 12 Device 10 | . 14 14 14 14 10 9 15 16 15 15 13 10 6 12 6 4 . Storage 6 | . 14 14 14 14 9 5 . . . . . . 6 6 6 5 . Processor 6 | . . . . . 3 12 7 7 7 7 11 14 13 6 6 4 . Hackware 4 | . . . . . . 1 7 7 7 7 6 6 6 6 12 9 5 Protection 4 | . . . . . 2 6 7 6 7 6 5 5 6 6 6 6 . Energy Gun 1 | . 12 . . . . . . . . . . . . . . 1 4 Energy Cannon 3 | . 1 14 14 14 12 5 . . . . . . . . . 2 . Ballistic Gun 1 | . 12 . . . . . . . . . . . . . . . . Ballistic Cannon 3 | . 1 11 14 14 4 6 7 7 7 7 6 . 1 . . . . Slashing Weapon 5 | . . . . . . . 7 7 6 7 6 6 7 12 13 8 5 Peak Build Rating 113 | 7 10 12 13 13 27 46 45 45 58 49 55 62 67 69 81 113 30 Average Rating 49 | 5 8 11 11 13 19 35 45 45 47 47 51 53 60 68 72 96 27 On Entrance 35 | . 7 10 12 13 13 25 45 45 45 48 48 55 58 62 69 81 11 Naked Turns . | . . . . . . . . . . . . . . . . . . Heaviest Build 71 | 11 32 33 32 32 40 47 19 19 20 20 20 38 45 41 44 71 8 Greatest Support 162 | 40 43 46 46 46 92 83 25 25 23 25 25 100 100 116 142 162 24 Greatest Overweight (x) 4 | . . . . . 1 1 . . . . . 4 1 . . 4 2 Average Overweight (x) . | . . . . . . . . . . . . . . . . . . Largest Inventory Capacity 15 | 8 15 15 15 15 15 15 5 5 5 5 5 10 10 10 10 15 5 Average Capacity 10 | 7 12 15 15 15 15 12 5 5 5 5 5 5 10 10 10 11 5 Most Carried 15 | 3 15 15 15 15 15 15 5 5 5 5 5 10 10 10 10 15 5 Average Carried 10 | 1 11 14 14 15 14 12 5 5 5 5 4 5 9 9 9 10 4 Final Capacity 15 | 8 15 15 15 15 15 5 5 5 5 5 5 10 10 10 10 5 5 Final Carried 15 | 3 15 15 15 15 15 5 5 5 5 5 5 10 10 10 9 5 5 Class Distribution -------------------- 28% | Scavenger-Mutant 26% | Scavenger-Gladiator 24% | Mutant 9% | Scavenger-Sprinter 3% | Scavenger-Scout Dominant Class ---------------- Mutant | -10/Materials Mutant | -10/Mines Mutant | -10/Exiles Mutant | -9/Mines Mutant | -8/Materials Scavenger-Mutant | -7/Factory Scavenger-Sprinter | -7/Lower Caves Scavenger-Sprinter | -7/Lower Caves Scavenger-Sprinter | -7/Zion Scavenger-Sprinter | -6/Proximity Caves Scavenger-Scout | -6/Factory Scavenger-Gladiator | -6/Extension Scavenger-Mutant | -6/Cetus Scavenger-Gladiator | -6/Archives Scavenger-Gladiator | -6/Hub_04(d) Scavenger-Mutant | -5/Factory Derelict-Mutant | -5/Upper Caves Resources | -11 -10 -10 -10 -9 -8 -7 -7 -7 -7 -6 -6 -6 -6 -6 -6 -5 -5 ----------- Run | Yrd Mat Min Exi Min Mat Fac Low Low Zio Pro Fac Ext Cet Arc Hub Fac Upp Matter Collected 4202 | 274 166 96 50 . 616 501 . 40 80 137 111 789 224 85 70 915 48 Remotely . | . . . . . . . . . . . . . . . . . . Salvage Created 6639 | 151 433 94 . . 1133 500 . . . 24 141 1080 . 295 269 2519 . Parts 332 | 9 33 5 . . 75 15 . . . 1 9 45 . 22 12 106 . Haulers Intercepted 17 | . 2 . . . 3 4 . . . . 1 . . . 2 5 . Recyclers Shooed 11 | . . . . . 3 . . . . . . 3 . . 1 4 . Parts Field Recycled . | . . . . . . . . . . . . . . . . . . Retrieved Matter . | . . . . . . . . . . . . . . . . . . Parts Self-Destructed 2 | . . . . . . . . . . 2 . . . . . . . Prevented . | . . . . . . . . . . . . . . . . . . Kills | -11 -10 -10 -10 -9 -8 -7 -7 -7 -7 -6 -6 -6 -6 -6 -6 -5 -5 ------- Run | Yrd Mat Min Exi Min Mat Fac Low Low Zio Pro Fac Ext Cet Arc Hub Fac Upp Combat Hostiles Destroyed 107 | . 12 3 . . 21 8 . . . 1 . 15 . . . 47 . Melee 12 | . . . . . . . . . . 1 . 1 . . . 10 . Guns 20 | . 12 . . . . . . . . . . . . . . 8 . Cannons 27 | . . 2 . . 14 8 . . . . . 1 . . . 2 . AOE 48 | . . 1 . . 7 . . . . . . 13 . . . 27 . Classes Destroyed 16 | 3 3 . . . 5 2 . . . . . 2 . . . 1 . Worker 12 | 1 . 1 . . 1 . . . . . . 2 . . 2 5 . Builder 10 | . . . . . 1 . . . . . . 4 . . . 5 . Tunneler 5 | 2 . . . . . . . . . . . 1 . . . 2 . Hauler 17 | . 2 . . . 3 4 . . . . 1 . . . 2 5 . Recycler 13 | 1 . . . . 4 1 . . . . . 4 . . . 3 . Mechanic 3 | . . . . . 1 . . . . . . . . . . 2 . Operator 10 | . . . . . 1 . . . . . 1 . . 8 . . . Watcher 7 | . . . . . 3 . . . . . 1 . . . . 3 . Swarmer 22 | . 7 1 . . 5 . . . . 1 . . . . . 8 . Grunt 47 | . 5 2 . . 13 2 . . . . . 8 . . . 17 . Brawler 2 | . . . . . . . . . . . . . . . . 2 . Sentry 4 | . . . . . 3 . . . . . . . . . . 1 . Specialist 5 | . . . . . . . . . . . . . . . . 5 . Hunter 7 | . . . . . . 2 . . . . . 1 . . . 4 . Programmer 14 | . . . . . . 4 . . . . . . . . . 10 . Behemoth 2 | . . . . . . . . . . . . 2 . . . . . Enhanced Grunt 1 | . . . . . . . . . . . . . . . 1 . . Thug 2 | . . . . . . . . . . . . 2 . . . . . Savage 1 | . . . . . . . . . . . . 1 . . . . . Guerrilla 1 | . . . . . . . . . . . . 1 . . . . . Best Kill Streak 14 | 3 4 2 . . 7 3 . . . 1 1 5 . 3 1 14 . Combat Bots Only 9 | . 4 2 . . 6 2 . . . 1 . 5 . . . 9 . Max Kills in Single Turn 6 | 1 1 1 . . 3 1 . . . 1 1 3 . 1 1 6 . Gunslinging 1 | . . . . . . . . . . . . . . . . 1 . Exploded 5 | . . 1 . . 3 . . . . . . 3 . . . 5 . Melee 1 | . . . . . . . . . . 1 . 1 . . . 1 . Uniques/NPCs Destroyed . | . . . . . . . . . . . . . . . . . . Combat | -11 -10 -10 -10 -9 -8 -7 -7 -7 -7 -6 -6 -6 -6 -6 -6 -5 -5 -------- Run | Yrd Mat Min Exi Min Mat Fac Low Low Zio Pro Fac Ext Cet Arc Hub Fac Upp Hostile Shots Fired 1091 | . 71 18 . . 130 71 5 7 . 5 . 256 53 2 22 432 19 Missed 394 | . 26 6 . . 32 28 1 5 . 2 . 125 18 1 5 134 11 Hits 697 | . 45 12 . . 98 43 4 2 . 3 . 131 35 1 17 298 8 Melee 3 | . . . . . . . . . . . . . . . . 3 . Projectile 694 | . 45 12 . . 98 43 4 2 . 3 . 131 35 1 17 295 8 AOE 1 | . . . . . . . . . . . . . . . . 1 . Critical Strikes 29 | . 1 1 . . 5 1 . . . . . . 3 . 4 13 1 Part Disruptions 1 | . . . . . . . . . . . . . . . . 1 . Damage Taken 11622 | . 428 181 . . 1348 632 80 . . 45 57 1293 907 85 689 5716 161 Core 1896 | . 101 10 . . 200 68 16 . . . . 244 129 . 122 926 80 Absorbed by Shields 728 | . . . . . . . . . . . . 257 102 . . 369 . Regen/Repaired (Parts) 425 | . . . . . . 57 . . 216 . . . . . . 152 . Core Remaining (%) 69 | 100 . . . 55 63 . . . . 88 . . . . 41 . . Volleys Fired 321 | 5 53 11 . . 76 44 . . . 23 2 33 6 . . 68 . Largest 3 | 2 2 2 . . 2 2 . . . 1 1 1 2 . . 3 . Hottest 300 | 60 100 90 . . 128 108 . . . 40 40 40 88 . . 300 . Shots Fired 502 | 10 98 19 . . 134 74 . . . 23 2 33 9 . . 99 1 Gun 154 | 10 90 . . . . . . . . . . . . . . 53 1 Cannon 267 | . . 18 . . 117 74 . . . 23 2 4 9 . . 20 . Launcher 67 | . . 1 . . 11 . . . . . . 29 . . . 26 . Special 14 | . 8 . . . 6 . . . . . . . . . . . . Kinetic 185 | 5 45 10 . . 43 44 . . . 23 2 4 9 . . . . Thermal 248 | 5 53 8 . . 80 30 . . . . . . . . . 71 1 Explosive 67 | . . 1 . . 11 . . . . . . 29 . . . 26 . Electromagnetic 2 | . . . . . . . . . . . . . . . . 2 . Robot Hit Streak 13 | 3 8 8 . . 13 12 . . . . . 9 5 . . 8 . Robot Miss Streak 6 | 1 5 2 . . 3 2 . . . . . 1 6 . . 6 . Penetration Max 1 | . . . . . . . . . . . . . 1 . . . . Secondary Targets 6 | . 3 . . . . . . . . . . . . . . 3 . Max Gunslinging Chain 1 | . 1 . . . . . . . . . . . . . . 1 . Shots Hit Robots 410 | 6 53 13 . . 82 55 . . . 1 5 24 5 8 26 132 . Core Hits 356 | 5 25 5 . . 66 16 . . . 1 3 72 2 6 6 149 . Critical Kills 1 | . 1 . . . . . . . . . . . . . . . . Critical Parts Destroyed 5 | . . . . . . 1 . . . . . 1 3 . . . . Critical Strikes 22 | . 1 . . . 1 2 . . . . 1 3 3 . 2 9 . Destroy 4 | . 1 . . . . . . . . . . . 3 . . . . Blast 2 | . . . . . 1 1 . . . . . . . . . . . Smash 2 | . . . . . . 1 . . . . . 1 . . . . . Sever 14 | . . . . . . . . . . . 1 2 . . 2 9 . Melee Attacks 224 | . . . . . . 9 . . 1 20 20 20 2 13 35 104 . Impact 18 | . . . . . . 9 . . . . . 7 2 . . . . Slashing 206 | . . . . . . . . . 1 20 20 13 . 13 35 104 . Piercing . | . . . . . . . . . . . . . . . . . . Sneak Attacks 37 | . . . . . . 3 . . . . 2 5 . 8 8 11 . Combat Hostiles . | . . . . . . . . . . . . . . . . . . Follow-up Attacks 16 | . . . . . . . . . . . . . . . 5 11 . Damage Inflicted 22485 | 64 498 275 . . 2415 1714 . . . 51 297 3869 243 807 1278 10974 . Guns 2263 | 64 498 . . . . . . . . . . . . . . 1701 . Cannons 3583 | . . 244 . . 1465 1400 . . . . . 86 180 . . 208 . Explosions 10343 | . . 31 . . 950 . . . . . . 3092 . . . 6270 . Melee 6296 | . . . . . . 314 . . . 51 297 691 63 807 1278 2795 . Ramming . | . . . . . . . . . . . . . . . . . . Kinetic 1877 | 20 220 105 . . 531 735 . . . . . 86 180 . . . . Thermal 4863 | 44 278 139 . . 934 665 . . . . . . . . . 2803 . Explosive 9412 | . . 31 . . 950 . . . . . . 3092 . . . 5339 . Electromagnetic 37 | . . . . . . . . . . . . . . . . 37 . Impact 528 | . . . . . . 314 . . . . . 151 63 . . . . Slashing 5768 | . . . . . . . . . . 51 297 540 . 807 1278 2795 . Piercing . | . . . . . . . . . . . . . . . . . . Highest Corruption 25 | . . . . . . 5 . . . . 1 3 3 3 10 23 25 Average Corruption 6 | . . . . . . 3 . . . . 1 1 3 2 6 11 23 Corruption Purged 13 | . . . . . . 5 . . . . . . . 3 . 5 . Corruption Blocked . | . . . . . . . . . . . . . . . . . . Effects 120 | . . . . . . 6 . . . . 3 20 6 2 1 74 8 Message Errors 26 | . . . . . . 2 . . . . . 5 1 . 1 16 1 Matter Fused 25 | . . . . . . . . . . . 2 5 1 . . 16 1 Heat Flow Errors 14 | . . . . . . . . . . . . 3 1 . . 8 2 Energy Discharges 18 | . . . . . . 2 . . . . . 1 1 . . 12 2 Parts Rejected 2 | . . . . . . . . . . . . . . . . 2 . Parts Fused 2 | . . . . . . . . . . . . . . . . 2 . Data Loss (minor) 16 | . . . . . . 1 . . . . . 3 1 2 . 9 . Data Loss (major) 10 | . . . . . . 1 . . . . 1 3 1 . . 4 . Misfires 4 | . . . . . . . . . . . . . . . . 3 1 Misdirections 1 | . . . . . . . . . . . . . . . . . 1 Weapon Failures 2 | . . . . . . . . . . . . . . . . 2 . Overload Shots 1 | . . . . . . . . . . . . . . . . 1 . Overflow Damage 1069 | . . 3 . . 37 129 . . . . 31 143 . 140 158 428 . Projectiles 145 | . . 3 . . 37 68 . . . . . . . . . 37 . Explosions 210 | . . . . . . . . . . . . 13 . . . 197 . Melee 714 | . . . . . . 61 . . . . 31 130 . 140 158 194 . Knockbacks 16 | . . 3 . . 9 4 . . . . . . . . . . . Impact . | . . . . . . . . . . . . . . . . . . Kinetic 16 | . . 3 . . 9 4 . . . . . . . . . . . Secondary . | . . . . . . . . . . . . . . . . . . Self-Inflicted Damage 136 | . . 24 . . 19 . . . . . . . . . . 93 . Shots 3 | . . 1 . . 1 . . . . . . . . . . 1 . Rammed . | . . . . . . . . . . . . . . . . . . Targets Rammed . | . . . . . . . . . . . . . . . . . . Kicked . | . . . . . . . . . . . . . . . . . . Crushed . | . . . . . . . . . . . . . . . . . . Highest Temperature 318 | 20 82 44 . . 72 8 69 71 . 50 17 136 143 . . 318 219 Average Temperature 44 | 13 30 20 . . 20 4 36 40 . 27 10 43 79 . . 74 84 Received Heat Transfer 2231 | . 108 87 . . 648 93 18 . . . . 214 99 . 88 867 9 Siege Activations . | . . . . . . . . . . . . . . . . . . Martial Activations . | . . . . . . . . . . . . . . . . . . Shielding Activations . | . . . . . . . . . . . . . . . . . . Robots Disrupted . | . . . . . . . . . . . . . . . . . . Combat Hostiles . | . . . . . . . . . . . . . . . . . . Robots Corrupted 2 | . . . . . . 2 . . . . . . . . . . . Combat Hostiles . | . . . . . . . . . . . . . . . . . . Parts Fried . | . . . . . . . . . . . . . . . . . . Impact Corruptions 4 | . . . . . . 3 . . . . . 1 . . . . . Robots Melted . | . . . . . . . . . . . . . . . . . . Combat Hostiles . | . . . . . . . . . . . . . . . . . . Parts Melted 9 | . . . . . 4 . . . . . . . . . . 5 . Heat Transferred 7288 | 100 625 296 . . 1887 888 . . . . . . . . . 3492 . Parts Sabotaged . | . . . . . . . . . . . . . . . . . . Parts Stolen . | . . . . . . . . . . . . . . . . . . Parts Stripped . | . . . . . . . . . . . . . . . . . . Power Chain Reactions 1 | . . . . . . . . . . . . . . . . 1 . Alert | -11 -10 -10 -10 -9 -8 -7 -7 -7 -7 -6 -6 -6 -6 -6 -6 -5 -5 ------- Run | Yrd Mat Min Exi Min Mat Fac Low Low Zio Pro Fac Ext Cet Arc Hub Fac Upp Maximum Alert Level 4 | . . . . . 2 . . . . . 1 2 1 . 1 4 . Low Security (%) 69 | 100 100 100 . 100 37 100 . . . . 20 41 87 100 75 35 . Level 1 16 | . . . . . 49 . . . . . 79 16 12 . 24 24 . Level 2 10 | . . . . . 12 . . . . . . 41 . . . 22 . Level 3 1 | . . . . . . . . . . . . . . . . 7 . Level 4 2 | . . . . . . . . . . . . . . . . 10 . Level 5 . | . . . . . . . . . . . . . . . . . . High Security . | . . . . . . . . . . . . . . . . . . Max Security . | . . . . . . . . . . . . . . . . . . Peak Influence 1304 | 10 150 50 . . 422 150 . . . . 308 575 292 81 377 1304 . Initial 300 | . 3 23 . . . 150 . . . . 300 81 292 11 . 37 . Average 172 | 1 66 13 . . 208 49 . . . . 241 311 120 5 146 402 . Influence Increases 6178 | 20 375 120 . . 767 357 72 . . 40 368 1144 96 236 572 1981 30 Destroy 0b10 Robot/C 2804 | . 240 60 . . 420 128 . . . 32 . 656 48 80 200 940 . Destroy 0b10 Robot/NC 393 | 20 10 5 . . 70 20 . . . . 12 48 4 39 40 125 . Destroy Leader 524 | . 64 10 . . 102 56 . . . 8 4 74 . . 30 176 . Allied During Kill 442 | . . . . . . . . . . . . 165 18 104 155 . . Successful Hack 199 | . 23 5 . . 8 88 . . . . 5 18 10 . 28 14 . Disable Machine 357 | . . . . . 15 12 . . . . 36 . 12 12 60 210 . Destroy Structure 754 | . 8 10 . . 77 17 . . . . 11 111 4 1 29 486 . Advance Influence 300 | . . . . . . . . . . . 300 . . . . . . Partial Spotted 12 | . . . . . . . . . . . . 12 . . . . . Lose Combat Pursuer 393 | . 30 30 . . 75 36 72 . . . . 60 . . 30 30 30 Influence Decreases 5432 | 15 320 164 16 . 436 554 71 57 78 40 200 789 591 264 496 823 518 Entered New Map 1224 | . 2 37 16 . . 181 51 27 78 . . 87 231 17 . 39 458 Time Decay 3187 | 15 318 127 . . 366 361 20 30 . 16 190 550 190 184 276 494 50 Lost Part 551 | . . . . . 70 10 . . . . 10 100 50 1 10 290 10 Lost Ally 320 | . . . . . . 2 . . . 24 . 52 120 62 60 . . Purge Threat 150 | . . . . . . . . . . . . . . . 150 . . Squads Dispatched 41 | . 2 . . . 8 9 . . . . 1 2 . . 6 13 . Investigation 4 | . . . . . . 3 . . . . . . . . . 1 . Extermination 11 | . . . . . . 5 . . . . 1 . . . 1 4 . Reinforcement 18 | . 2 . . . 4 1 . . . . . 2 . . 4 5 . Assault 3 | . . . . . . . . . . . . . . . . 3 . Garrison 5 | . . . . . 4 . . . . . . . . . 1 . . Intercept . | . . . . . . . . . . . . . . . . . . Searches Triggered . | . . . . . . . . . . . . . . . . . . Construction Impeded 4 | . . . . . . . . . . . . 2 . . . 2 . Haulers Reinforced 1 | . . . . . . 1 . . . . . . . . . . . Active Scanning Responses . | . . . . . . . . . . . . . . . . . . Cargo Convoy Interrupts 1 | . . . . . . . . . . . . . . . . 1 . Stealth | -11 -10 -10 -10 -9 -8 -7 -7 -7 -7 -6 -6 -6 -6 -6 -6 -5 -5 --------- Run | Yrd Mat Min Exi Min Mat Fac Low Low Zio Pro Fac Ext Cet Arc Hub Fac Upp Distress Signals 12 | . 2 . . . 4 . . . . . . 1 1 . 2 2 . Communications Jammed . | . . . . . . . . . . . . . . . . . . Distress Signals . | . . . . . . . . . . . . . . . . . . Times Spotted 246 | . 22 5 . . 31 17 9 1 . 5 5 39 5 4 28 68 7 Peak Tracking Total 15 | . 7 3 . . 7 3 10 1 . 3 3 7 5 2 15 11 4 Tactical Retreats 19 | . 1 1 . . 3 3 2 . . 1 1 3 . . 1 2 1 Traps | -11 -10 -10 -10 -9 -8 -7 -7 -7 -7 -6 -6 -6 -6 -6 -6 -5 -5 ------- Run | Yrd Mat Min Exi Min Mat Fac Low Low Zio Pro Fac Ext Cet Arc Hub Fac Upp Traps Triggered 8 | . . . . . . 2 . . . . 2 1 . . . 3 . Indirectly . | . . . . . . . . . . . . . . . . . . Trap Hack Attempts . | . . . . . . . . . . . . . . . . . . Triggered . | . . . . . . . . . . . . . . . . . . Disarmed . | . . . . . . . . . . . . . . . . . . Reprogrammed . | . . . . . . . . . . . . . . . . . . Reused . | . . . . . . . . . . . . . . . . . . Traps Extracted . | . . . . . . . . . . . . . . . . . . Installed . | . . . . . . . . . . . . . . . . . . Triggered . | . . . . . . . . . . . . . . . . . . Most Traps Carried 2 | . . 2 2 2 2 1 . . . . . . . . . . . Machines | -11 -10 -10 -10 -9 -8 -7 -7 -7 -7 -6 -6 -6 -6 -6 -6 -5 -5 ---------- Run | Yrd Mat Min Exi Min Mat Fac Low Low Zio Pro Fac Ext Cet Arc Hub Fac Upp Machines Disabled 26 | . . . . . 1 1 . . . . 3 1 1 1 4 14 . Max in Single Turn 5 | . . . . . 1 1 . . . . 1 1 1 . . 5 . Garrison Access 1 | . . . . . . . . . . . . . . . . 1 . Network Hub 1 | . . . . . . . . . . . . . . . 1 . . Energy Cycler 1 | . . . . . . . . . . . . 1 . . . . . Machines Repaired . | . . . . . . . . . . . . . . . . . . Machines Dismantled 1 | . . . . . . . . . . . . . 1 . . . . Machines Sabotaged . | . . . . . . . . . . . . . . . . . . Overloaded Fab Kills . | . . . . . . . . . . . . . . . . . . Hacking | -11 -10 -10 -10 -9 -8 -7 -7 -7 -7 -6 -6 -6 -6 -6 -6 -5 -5 --------- Run | Yrd Mat Min Exi Min Mat Fac Low Low Zio Pro Fac Ext Cet Arc Hub Fac Upp Machines Accessed 77 | . 8 1 2 . 5 21 . 1 1 . 11 6 3 . 6 11 1 Terminals 51 | . 7 1 . . 4 16 . . . . 9 5 3 . 5 1 . Fabricators 4 | . . . . . . . . . . . 1 . . . . 3 . Repair Stations 3 | . 1 . . . . 1 . . . . . . . . . 1 . Recycling Units 6 | . . . . . 1 2 . . . . . 1 . . . 2 . Scanalyzers 3 | . . . . . . 1 . . . . . . . . . 2 . Garrison Access 5 | . . . . . . 1 . . . . 1 . . . 1 2 . Total Hacks 202 | . 22 2 2 . 9 66 . 1 5 . 20 11 6 . 21 36 1 Successful 106 | . 16 1 2 . 5 32 . 1 5 . 4 5 3 . 11 20 1 Failed 96 | . 6 1 . . 4 34 . . . . 16 6 3 . 10 16 . Catastrophic 23 | . . . . . 1 5 . . . . 7 1 . . 2 7 . Database Lockouts . | . . . . . . . . . . . . . . . . . . Manual 93 | . 12 . 1 . 6 38 . . . . 11 2 1 . 17 5 . Terminals 145 | . 20 2 . . 8 58 . . . . 16 9 6 . 19 7 . Fabricators 12 | . . . . . . . . . . . 2 . . . . 10 . Repair Stations 8 | . 2 . . . . 3 . . . . . . . . . 3 . Recycling Units 7 | . . . . . 1 2 . . . . . 2 . . . 2 . Scanalyzers 12 | . . . . . . 2 . . . . . . . . . 10 . Garrison Access 9 | . . . . . . 1 . . . . 2 . . . 2 4 . Terminal Hacks 55 | . 7 1 2 . 2 18 . 1 5 . 3 3 3 . 8 1 1 Record 4 | . . . 1 . . . . . . . . . 3 . . . . Part Schematic 9 | . . . . . . 4 . . 5 . . . . . . . . Prototype ID Bank 3 | . . . . . . 2 . . . . 1 . . . . . . Open Door 3 | . . . . . . . . 1 . . . 1 . . . . 1 Branch Access Points 3 | . . . . . . 1 . . . . 1 . . . . 1 . Emergency Access Points 1 | . . . . . . 1 . . . . . . . . . . . Terminal Index 4 | . 1 . . . . 1 . . . . 1 . . . 1 . . Alert Level 2 | . . . . . 1 . . . . . . . . . 1 . . Unreport Threat 1 | . . . . . . . . . . . . . . . 1 . . Locate Traps 13 | . 2 . . . 1 6 . . . . . 2 . . 2 . . Recall Extermination 1 | . . . . . . 1 . . . . . . . . . . . Recall Reinforcements 1 | . . . . . . . . . . . . . . . 1 . . Hauler Manifests 3 | . 1 . . . . 2 . . . . . . . . . . . Registered Components 1 | . 1 . . . . . . . . . . . . . . . . Zone Layout 5 | . 2 1 . . . . . . . . . . . . 2 . . Proto ID Catalog 1 | . . . 1 . . . . . . . . . . . . . . Fabricator Hacks 6 | . . . . . . . . . . . 1 . . . . 5 . Network Status 2 | . . . . . . . . . . . 1 . . . . 1 . Load Schematic 2 | . . . . . . . . . . . . . . . . 2 . Build 2 | . . . . . . . . . . . . . . . . 2 . Repair Station Hacks 5 | . 1 . . . . 2 . . . . . . . . . 2 . Scan Component 3 | . 1 . . . . 1 . . . . . . . . . 1 . Repair 2 | . . . . . . 1 . . . . . . . . . 1 . Recycling Unit Hacks 4 | . . . . . 1 . . . . . . 2 . . . 1 . Report Inventory 3 | . . . . . 1 . . . . . . 1 . . . 1 . Retrieve Components 1 | . . . . . . . . . . . . 1 . . . . . Scanalyzer 10 | . . . . . . 1 . . . . . . . . . 9 . Insert Component 5 | . . . . . . 1 . . . . . . . . . 4 . Analyze 5 | . . . . . . . . . . . . . . . . 5 . Garrison Access Hacks 1 | . . . . . . . . . . . . . . . . 1 . Seal Access 1 | . . . . . . . . . . . . . . . . 1 . Unauthorized Hacks 25 | . 8 . . . 2 11 . . . . . . . . 3 1 . Terminals 24 | . 8 . . . 2 11 . . . . . . . . 3 . . Assimilate 1 | . . . . . . 1 . . . . . . . . . . . Botnet 9 | . 2 . . . . 5 . . . . . . . . 2 . . Disrupt 1 | . . . . . . . . . . . . . . . 1 . . Operators 1 | . . . . . 1 . . . . . . . . . . . . Skim 12 | . 6 . . . 1 5 . . . . . . . . . . . Fabricators 1 | . . . . . . . . . . . . . . . . 1 . Prioritize 1 | . . . . . . . . . . . . . . . . 1 . Repair Stations . | . . . . . . . . . . . . . . . . . . Recycling Units . | . . . . . . . . . . . . . . . . . . Scanalyzers . | . . . . . . . . . . . . . . . . . . Garrison Access . | . . . . . . . . . . . . . . . . . . Data Cores Recovered . | . . . . . . . . . . . . . . . . . . Used . | . . . . . . . . . . . . . . . . . . Hacking Detections 63 | . 5 . . . 4 21 . . . . 11 4 4 . 6 8 . Full Trace Events 3 | . . . . . . 2 . . . . . . . . . 1 . Feedback Events . | . . . . . . . . . . . . . . . . . . Feedback Blocked . | . . . . . . . . . . . . . . . . . . Robot Schematics Acquired 3 | . . . . . . . . . 3 . . . . . . . . Robots Built . | . . . . . . . . . . . . . . . . . . Authchips . | . . . . . . . . . . . . . . . . . . Time . | . . . . . . . . . . . . . . . . . . Total Robot Build Rating . | . . . . . . . . . . . . . . . . . . Part Schematics Acquired 28 | . . . . . . 4 . . 21 . . . . . . 3 . Parts Built 3 | . . . . . . . . . . . . . . . . 3 . Authchips . | . . . . . . . . . . . . . . . . . . Time 100 | . . . . . . . . . . . . . . . . 100 . Total Part Build Rating 16 | . . . . . . . . . . . . . . . . 16 . Parts Repaired 2 | . . . . . . 1 . . . . . . . . . 1 . Time 57 | . . . . . . 13 . . . . . . . . . 44 . Parts Recycled . | . . . . . . . . . . . . . . . . . . Recycled Matter . | . . . . . . . . . . . . . . . . . . Retrieved Matter . | . . . . . . . . . . . . . . . . . . Retrieved Components 9 | . . . . . . . . . . . . 9 . . . . . Parts Scanalyzed 5 | . . . . . . 1 . . . . . . . . . 4 . Part Schematics Acquired 3 | . . . . . . . . . . . . . . . . 3 . Parts Damaged 1 | . . . . . . 1 . . . . . . . . . . . Bothacking | -11 -10 -10 -10 -9 -8 -7 -7 -7 -7 -6 -6 -6 -6 -6 -6 -5 -5 ------------ Run | Yrd Mat Min Exi Min Mat Fac Low Low Zio Pro Fac Ext Cet Arc Hub Fac Upp Used RIF Installer . | . . . . . . . . . . . . . . . . . . Robots Hacked . | . . . . . . . . . . . . . . . . . . Non-combat . | . . . . . . . . . . . . . . . . . . Combat . | . . . . . . . . . . . . . . . . . . Robot Hacks Applied . | . . . . . . . . . . . . . . . . . . Relay Couplers Released 2 | . . . . . . . . . . . . . . . . 2 . Machine Destruction 2 | . . . . . . . . . . . . . . . . 2 . Fabnet Peak Effective % . | . . . . . . . . . . . . . . . . . . Robots Rewired 10 | . . . . . . . . . . . . 10 . . . . . Allies Hacked . | . . . . . . . . . . . . . . . . . . Hacks Repelled . | . . . . . . . . . . . . . . . . . . Allies | -11 -10 -10 -10 -9 -8 -7 -7 -7 -7 -6 -6 -6 -6 -6 -6 -5 -5 -------- Run | Yrd Mat Min Exi Min Mat Fac Low Low Zio Pro Fac Ext Cet Arc Hub Fac Upp Total Allies 23 | . . . . . . 1 . . 4 . . 13 5 . . . . Largest Group 9 | . . . . . . 1 . . 4 4 . 9 9 8 4 . . Highest-Rated Group 556 | . . . . . . 26 . . 107 107 . 372 556 556 316 . . Highest-Rated Ally 159 | . . . . . . 26 . . 31 31 . 159 140 96 96 . . Total Orders 3 | . . . . . . . . . . . . 2 . . 1 . . STAY 2 | . . . . . . . . . . . . 1 . . 1 . . FOLLOW 1 | . . . . . . . . . . . . 1 . . . . . Ally Attacks 220 | . . . . . . . . . . 11 . 97 37 30 45 . . Total Damage 6815 | . . . . . . . . . . 63 . 2610 847 1174 2121 . . Kills 51 | . . . . . . . . . . 1 . 28 4 4 14 . . Allies Corrupted . | . . . . . . . . . . . . . . . . . . Allies Melted . | . . . . . . . . . . . . . . . . . . Intel | -11 -10 -10 -10 -9 -8 -7 -7 -7 -7 -6 -6 -6 -6 -6 -6 -5 -5 ------- Run | Yrd Mat Min Exi Min Mat Fac Low Low Zio Pro Fac Ext Cet Arc Hub Fac Upp Active Infowar (turns) 5787 | 39 1310 314 446 . 352 503 50 70 385 290 396 1444 . . . 188 . Optics 1835 | . . . . . 66 . . . . . 325 1444 . . . . . Terrain 2 | . . . . . . . . . . 2 . . . . . . . Seismic 4318 | 39 1310 314 446 . 352 473 50 70 385 290 396 193 . . . . . ECM 302 | . . . . . . 30 . 15 . 22 47 . . . . 188 . Robot Analysis Total . | . . . . . . . . . . . . . . . . . . Derelict Logs Recovered 4 | . . 1 . . . . . 1 1 . . . . . . . 1 Drone Launches . | . . . . . . . . . . . . . . . . . . Drone Recoveries . | . . . . . . . . . . . . . . . . . . Exploration | -11 -10 -10 -10 -9 -8 -7 -7 -7 -7 -6 -6 -6 -6 -6 -6 -5 -5 ------------- Run | Yrd Mat Min Exi Min Mat Fac Low Low Zio Pro Fac Ext Cet Arc Hub Fac Upp Turns Passed 15355 | 116 1310 442 447 575 1623 2047 50 70 385 290 396 1587 393 2015 698 2798 113 Spaces Moved 10844 | 56 513 228 271 244 526 1625 222 269 1021 785 977 1616 235 208 446 1418 184 Core 68 | 4 . . . . . . . . . . . 47 . . . 7 10 Treads 2400 | 52 513 228 271 244 526 531 . . . . . 35 . . . . . Legs 2739 | . . . . . . . . . . . . 440 235 208 446 1410 . Wheels . | . . . . . . . . . . . . . . . . . . Hover 1 | . . . . . . . . . . . . . . . . 1 . Flight 5636 | . . . . . . 1094 222 269 1021 785 977 1094 . . . . 174 Fastest Speed 11 | 50 160 160 160 160 160 23 17 17 23 17 17 11 120 120 120 50 49 Average Speed 79 | 152 160 160 160 160 162 69 22 22 23 22 22 60 121 120 120 115 53 Slowest Speed 260 | 160 160 160 160 160 240 163 23 23 23 23 23 250 190 120 120 260 150 Overloaded Moves 82 | . . . . . . . 28 21 . 13 8 12 . . . . . Propulsion Burnouts . | . . . . . . . . . . . . . . . . . . Robots Hopped 22 | . . . . . . 8 . . . . 5 6 . . 2 . 1 Potential Cave-ins . | . . . . . . . . . . . . . . . . . . Cave-ins Triggered . | . . . . . . . . . . . . . . . . . . Exploration Rate (%) 55 | 5 85 47 65 57 32 48 47 46 86 81 35 88 76 89 48 34 30 Regions Visited 17 Branch Regions 12 Pre-discovered Areas 3 | . . . 1 . . 1 . 1 . . . . . . . . . Known Exits Taken 5 | . . . . . . 1 1 . . . 1 . . . 1 1 . Unknown Exits Taken 12 | 1 1 1 1 1 1 . . 1 1 1 . 1 1 1 . . . Scrap Searched 5 | . . . . . . . . 1 3 1 . . . . . . . Spaces Dug 91 | . 6 . . . 10 7 . . . 35 11 2 . . 5 15 . Terrain Destroyed 762 | . 8 15 . . 91 17 . . . 35 11 206 3 . 5 371 . Melee 52 | . . . . . . 3 . . . 19 10 2 . . 5 13 . Projectile 50 | . 8 . . . 6 14 . . . 16 1 . 3 . . 2 . AOE 660 | . . 15 . . 85 . . . . . . 204 . . . 356 . Terrain Rammed . | . . . . . . . . . . . . . . . . . . Walls Destroyed . | . . . . . . . . . . . . . . . . . . Machines Disabled . | . . . . . . . . . . . . . . . . . . Actions | -11 -10 -10 -10 -9 -8 -7 -7 -7 -7 -6 -6 -6 -6 -6 -6 -5 -5 --------- Run | Yrd Mat Min Exi Min Mat Fac Low Low Zio Pro Fac Ext Cet Arc Hub Fac Upp Total 16668 | 74 896 285 285 429 1142 2448 221 276 1167 840 1109 2146 307 1962 558 2327 196 Wait 4762 | 4 303 39 9 186 483 717 . 6 134 7 104 298 29 1729 69 638 7 Move 10786 | 55 512 227 270 243 525 1609 221 268 1020 784 966 1605 234 207 441 1417 182 Hop 19 | . . . . . . 7 . . . . 5 4 . . 2 . 1 Pick Up 75 | 3 15 2 2 . 9 7 . . . . 1 10 2 3 2 18 1 Fast Attach 116 | 7 . . . . 13 17 . . 5 2 3 20 7 5 3 31 3 Attach 46 | . 1 . . . 6 6 . . . . 1 10 2 . 1 18 1 Detach 22 | . . . . . 1 1 . . . . . 10 1 . . 9 . Swap 80 | . 8 4 2 . 16 5 . 2 2 2 4 5 8 2 6 14 . Drop 116 | . 4 2 2 . 13 26 . . 5 2 3 16 6 8 4 25 . Fire 321 | 5 53 11 . . 76 44 . . . 23 2 33 6 . . 68 . Melee 197 | . . . . . . 9 . . 1 20 20 18 2 8 30 89 . Ram . | . . . . . . . . . . . . . . . . . . Kick . | . . . . . . . . . . . . . . . . . . Crush . | . . . . . . . . . . . . . . . . . . Escape Stasis 8 | . . . . . . . . . . . . 8 . . . . . Rewire 110 | . . . . . . . . . . . . 109 . . . . 1 Trap . | . . . . . . . . . . . . . . . . . . Miscellaneous 10 | . . . . . . . . . . . . . 10 . . . . Route ------- -11/Scrapyard -10/Materials (discovered 6 exits: *Mat x3 / *Min x2 / [*Sub]) -10/Mines (discovered 3 exits: *Mat x2 / *Exi) -10/Exiles -9/Mines -8/Materials (discovered 2 exits: *Fac / Sto) -7/Factory (discovered 3 exits: *Fac / *Low x2) -7/Lower Caves -7/Lower Caves -7/Zion (discovered 2 exits: Dee / [*Pro]) -6/Proximity Caves -6/Factory (discovered 6 exits: *Fac x2 / Low x2 / *Ext x2) -6/Extension (discovered 3 exits: *Fac x2 / *Cet) -6/Cetus -6/Archives (discovered 3 exits: *Fac / *Hub x2) -6/Hub_04(d) (discovered 3 exits: *Fac x3) -5/Factory (discovered 3 exits: [*Fac] / *Upp x2) -5/Upper Caves (discovered 1 exit: Upp) History --------- Turn | Location | Event 26 | -11/Scrapyard | Discovered new exit (range 15) 117 | -11/Scrapyard | Entered Materials 202 | -10/Materials | Discovered new exit (range 8) 307 | -10/Materials | Build established: Mutant 467 | -10/Materials | Discovered new exit (range 15) 524 | -10/Materials | Discovered new exit (range 10) 848 | -10/Materials | Discovered new exit (range 5) 976 | -10/Materials | Learned 2 Storage zone layouts 1116 | -10/Materials | Learned 2 Mines zone layouts 1126 | -10/Materials | Discovered new exit (range 13) 1170 | -10/Materials | Identified exit to Materials 1250 | -10/Materials | Learned Storage trap positions 1355 | -10/Materials | Learned 2 Storage zone layouts 1427 | -10/Materials | Entered Mines 1442 | -10/Mines | Learned Materials garrison access intel 1667 | -10/Mines | Assembled infested the area 1820 | -10/Mines | Found a hidden stash of uninstalled traps 1862 | -10/Mines | Deemed a non-threat by the Exiles lab entrance 1862 | -10/Mines | Discovered new exit (range 5) 1869 | -10/Mines | Entered Exiles 1911 | -10/Exiles | Met 8R-AWN 1938 | -10/Exiles | Met EX-HEX 1983 | -10/Exiles | Met EX-BIN 2002 | -10/Exiles | Aligned with FarCom system 2004 | -10/Exiles | Given EX-Vault access code 2045 | -10/Exiles | Opened EX-Vault 2060 | -10/Exiles | Found 0b10 Alert Chip 2093 | -10/Exiles | Warned to stay clear of 0b10 Research branches 2141 | -10/Exiles | Met EX-DEC 2191 | -10/Exiles | Learned location of Zion (-7) 2294 | -10/Exiles | Discovered new exit (range 14) 2316 | -10/Exiles | Left Exiles lab with 0b10 Alert Chip 2316 | -10/Exiles | Entered Mines 2704 | -9/Mines | Discovered new exit (range 8) 2891 | -9/Mines | Entered Materials 2891 | -8/Materials | Evolved 4 slots: Propulsion x2, Utility x2 2892 | -8/Materials | Identified exit to Storage 2893 | -8/Materials | Loaded intel: 1 garrison access location 2943 | -8/Materials | Garrison activated, responded to threat 3438 | -8/Materials | Garrison activated, responded to threat 3993 | -8/Materials | Lost 3 parts (3n) 4120 | -8/Materials | Discovered new exit (range 16) 4292 | -8/Materials | Build established: Scavenger-Mutant 4514 | -8/Materials | Entered Factory 4514 | -7/Factory | Evolved 2 slots: Propulsion x1, Utility x1 4514 | -7/Factory | Discovered new exit (range 8) 6208 | -7/Factory | Repaired Lgt. Armor Plating 6271 | -7/Factory | Discovered new exit (range 6) 6277 | -7/Factory | Identified exit to Lower Caves 6323 | -7/Factory | Build established: Scavenger-Sprinter 6331 | -7/Factory | Learned location of 1 exit from Hub_04(d) 6428 | -7/Factory | Loaded intel: 107 trap records 6461 | -7/Factory | Learned location of 1 exit from Lower Caves 6485 | -7/Factory | Learned location of Proximity Caves (-4) 6518 | -7/Factory | Learned Extension emergency access door positions 6561 | -7/Factory | Entered Lower Caves 6562 | -7/Lower Caves | Identified exit to Lower Caves 6611 | -7/Lower Caves | Entered another Lower Caves area 6619 | -7/Lower Caves | Spotted B-75 Beast 6653 | -7/Lower Caves | Discovered new exit (range 14) 6681 | -7/Lower Caves | Entered Zion 6692 | -7/Zion | Visited the Megawrench Repair Shop 6693 | -7/Zion | Identified exit to Deep Caves 6827 | -7/Zion | Found Prototype Device 6827 | -7/Zion | Identified Phasing AFG 6879 | -7/Zion | Rebuked by Imprinter 6901 | -7/Zion | Gained Derelict followers 6926 | -7/Zion | Megawrench repaired 10 parts 6930 | -7/Zion | Discovered new exit (range 8) 7066 | -7/Zion | Entered Proximity Caves 7066 | -6/Proximity Caves | Accompanied by 4 allies 7097 | -6/Proximity Caves | Spotted B-75 Beast 7132 | -6/Proximity Caves | Spotter reported a threat 7318 | -6/Proximity Caves | Spotter reported a threat 7345 | -6/Proximity Caves | Discovered new exit (range 16) 7356 | -6/Proximity Caves | Entered Factory 7356 | -6/Factory | Evolved 2 slots: Propulsion x1, Utility x1 7397 | -6/Factory | Discovered new exit (range 7) 7443 | -6/Factory | Identified exit to Lower Caves 7443 | -6/Factory | Identified exit to Extension 7567 | -6/Factory | Discovered new exit (range 18) 7752 | -6/Factory | Entered Extension 7850 | -6/Extension | Build established: Scavenger-Scout 7922 | -6/Extension | Rescued a captive Derelict 7923 | -6/Extension | Rescued a captive Derelict 7958 | -6/Extension | Energy Cycler disabled 7958 | -6/Extension | Rescued a captive Derelict 7958 | -6/Extension | Rescued a captive Derelict 7959 | -6/Extension | Rescued A7 7962 | -6/Extension | Rescued a captive Derelict 7962 | -6/Extension | Rescued a captive Derelict 7965 | -6/Extension | Rescued a captive Derelict 8001 | -6/Extension | Lost 4 parts (2p2n) 8299 | -6/Extension | Spotted B-75 Beast 8390 | -6/Extension | Destroyed B-75 Beast 8427 | -6/Extension | Disrupted transfer network 8446 | -6/Extension | Spotted B-75 Beast 8497 | -6/Extension | Destroyed B-75 Beast 8562 | -6/Extension | Lost 4 parts (1p2n1w) 8671 | -6/Extension | Discovered new exit (range 15) 9095 | -6/Extension | Build established: Scavenger-Gladiator 9113 | -6/Extension | Discovered new exit (range 10) 9114 | -6/Extension | Discovered new exit (range 6) 9339 | -6/Extension | Entered Cetus 9339 | -6/Cetus | Accompanied by 9 allies (A7) 9344 | -6/Cetus | Acquired a Cetus Manufacturing Module code from A7 9359 | -6/Cetus | Spotted Cetus Guard 9359 | -6/Cetus | Spotted Cetus Guard 9364 | -6/Cetus | Spotted Cetus Guard 9370 | -6/Cetus | Spotted Cetus Guard 9389 | -6/Cetus | Allies destroyed Cetus Guard 9401 | -6/Cetus | Allies destroyed Cetus Guard 9404 | -6/Cetus | Allies destroyed Cetus Guard 9408 | -6/Cetus | Extracted ID and sensor layout for unrecognized location from A7's data core 9429 | -6/Cetus | Lost 6 allies 9435 | -6/Cetus | Lost 5 parts (4n1w) 9526 | -6/Cetus | Started Cetus Manufacturing Module 9551 | -6/Cetus | Manufactured an Enhanced Grunt 9576 | -6/Cetus | Manufactured an Enhanced Grunt 9601 | -6/Cetus | Manufactured an Enhanced Grunt 9626 | -6/Cetus | Manufactured an Enhanced Grunt 9651 | -6/Cetus | Manufactured an Enhanced Grunt 9689 | -6/Cetus | Discovered new exit (range 16) 9732 | -6/Cetus | Entered Archives 9732 | -6/Archives | Accompanied by 8 allies 9906 | -6/Archives | Discovered new exit (range 16) 9912 | -6/Archives | Unable to access archive contents 9914 | -6/Archives | Lost 4 allies 9924 | -6/Archives | Discovered new exit (range 16) 10000 | -6/Archives | Discovered new exit (range 15) 11747 | -6/Archives | Entered Hub_04(d) 11747 | -6/Hub_04(d) | Accompanied by 4 allies 11748 | -6/Hub_04(d) | Identified exit to Factory 11878 | -6/Hub_04(d) | Core integrity fell below 50% 12058 | -6/Hub_04(d) | Discovered exit to Factory (range 13) 12300 | -6/Hub_04(d) | Network Hub disabled 12373 | -6/Hub_04(d) | Spotted Lightning 12377 | -6/Hub_04(d) | Spotted Lightning 12391 | -6/Hub_04(d) | Spotted Lightning 12394 | -6/Hub_04(d) | Garrison activated, responded to threat 12432 | -6/Hub_04(d) | Discovered exit to Factory (range 7) 12441 | -6/Hub_04(d) | System corruption reached 10% 12445 | -6/Hub_04(d) | Entered Factory 12445 | -5/Factory | Evolved 2 slots: Power x1, Weapon x1 12650 | -5/Factory | Identified exit to Upper Caves 13064 | -5/Factory | Cargo convoy interrupted 13070 | -5/Factory | Lost 5 parts (2n3u) 13094 | -5/Factory | Found Prototype Launcher 13094 | -5/Factory | Identified Adv. Micro-nuke Launcher 13102 | -5/Factory | Destroyed 9 combat bots 13112 | -5/Factory | Found Adv. Micro-nuke Launcher 13151 | -5/Factory | Discovered new exit (range 5) 13295 | -5/Factory | Build established: Scavenger-Mutant 13493 | -5/Factory | Fabricated Adv. System Shield (x1) 13617 | -5/Factory | Repaired Enh. Flexi-carbon Leg 13684 | -5/Factory | Fabricated Arm. Leg? 14207 | -5/Factory | System corruption reached 10% 14545 | -5/Factory | First assault squad dispatched 14808 | -5/Factory | Destroyed 7 combat bots 14982 | -5/Factory | Destroyed 8 combat bots 14985 | -5/Factory | Lost 8 parts (1p3n3u1w) 15007 | -5/Factory | Core integrity fell below 50% 15153 | -5/Factory | Lost 3 parts (1p1n1w) 15237 | -5/Factory | Core integrity fell below 20% 15243 | -5/Factory | Entered Upper Caves 15271 | -5/Upper Caves | Lost 6 parts (2n2u2w) 15352 | -5/Upper Caves | Identified exit to Upper Caves 15356 | -5/Upper Caves | Destroyed by Y-64 Sentinel with Wave Gun Last Messages --------------- GOAL=ESCAPE 15244_ System corrupted: Heat flow error (+259). 15245_ Connecting with WAR.Sys... >>Open Door Sealed Heavy Doors opened. 15252_ L9-7DE(b) is dormant, system inaccessible. 15257_ Acquired Mak. Flight Unit. 15264_ Acquired Adv. Shield Generator. 15268_ System corrupted: Energy discharge (-26). 15287_ System corrupted: Heat flow error (+137). 15305_ System corrupted: Matter fused (-8). 15320_ System corrupted: Energy discharge (-23). 15335_ System corrupted: FCS attempts to trigger Adv. Variable Charge Gun. 15335_ System corrupted: Adv. Variable Charge Gun misfires. 15349_ Penetrated by Slug. 15349_ Mak. Flight Unit destroyed. 15350_ WCHAI<5<2I%FFKFLHFZ YXCEI7BNJ&6 15352_ Acquired derelict log, extracted data. Loading 1 Upper Caves exit... 15354_ Acquired 48 matter. Map ----- +----------------------------------------------------+ | ?????????????????????????????????????????## ?? | | ?????????????????????????????????????????? # ??? | | ??????????????????????????????????????????? # ??? | | ???????????????????????????????????????????# #??? | | ?????????????????????????????????????????### #### | | ?????????????????????????????????????????# # ## | | ?????????????????????????????????????????# | | ??????????????????????????????????????#### | | ??????????????????????????????????????# | | ??????????????????????????????????????# | | ??????????????????????????????????????# ### | | ?????????????????????????????????????## #?## | | ????????????????????????????????????## ##??## | | ???????????????????????????????????## #???## | | ???????????????????????????????????# ##???# | | ???????????????????????????????????# #????## | | ???????????????????????????????????# ###???? | | ?????????????????????? ##??#??????## ## | | ???????????????????????# ######## | | ????????????????????????# | | ????????????????????????# ## | | ????????????????????????## ### ## #?# | | ??????????????????# ?????## #???# #### #??## | | ??????????????????# ????#?# #?### #??# #????# | | ?????????????????## #####h### #??# #?????? | | ?????????????????# @ ## #??# #?????? | | ?????????? ## # ##??? #?????? | | ?????????????# ?#! # #????# #?????? | | ?????????????#### Y ?# ## #????? ?????? | | ????????????????## ?### #????# ?????? | | ?????????????????# ????# ### # ??? ?????? | | ?????????????????# ????## #?## ##????????? | | ?????????????????#####??????####???#####?????????? | | ?????????????????????????????????????????????????? | | ?????????????????????????????????????????????????? | | ?????????????????????????????????????????????????? | | ?????????????????????????????????????????????????? | | ?????????????????????????????????????????????????? | | ?????????????????????????????????????????????????? | | ?????????????????????????????????????????????????? | | ?????????????????????????????????????????????????? | | ?????????????????????????????????????????????????? | | ?????????????????????????????????????????????????? | | ?????????????????????????????????????????????????? | | ?????????????????????????????????????????????????? | | ?????????????????????????????????????????????????? | | ?????????????????????????????????????????????????? | | ?????????????????????????????????????????????????? | | | | | +----------------------------------------------------+ Best States ------------- Heat Dissipation 71 Energy Generation 38 Energy Capacity 900 Matter Stores 300 Matter Capacity 300 Sight Range 18 Terrain Scan Density 10 ECM Strength 1 Armor Coverage 600 Point Defense Rating 80 Evasion (%) 75 Targeting Accuracy 8 Melee Accuracy 5 Target Analysis 6 Recoil Reduction 4 Offensive Hacking 12 Defensive Hacking 20 Item Schematics ----------------- Imp. Cooling System | -7/Factory | Hacked Plasma Cutter | -7/Factory | Hacked Hacking Suite | -7/Factory | Hacked Imp. Carbon-fiber Leg | -7/Factory | Hacked Imp. KE Penetrator | -7/Zion | Archive Matter Compressor | -7/Zion | Archive Imp. Salvage Targeting Computer | -7/Zion | Archive Core Analyzer | -7/Zion | Archive Arm. Leg | -7/Zion | Archive Nuclear Pulse Thruster | -7/Zion | Archive Coolant Injector | -7/Zion | Archive Point Defense System | -7/Zion | Archive KE Penetrator | -7/Zion | Archive Proton Missile Launcher | -7/Zion | Archive Lyr. Medium Armor Plating | -7/Zion | Archive Transmission Jammer | -7/Zion | Archive Imp. System Restoration Module | -7/Zion | Archive Imp. Shield Generator | -7/Zion | Archive Thermal Shield | -7/Zion | Archive Imp. Field Recycling Unit | -7/Zion | Archive Riot Gun | -7/Zion | Free Flamer | -7/Zion | Free Hvy. Riot Gun | -7/Zion | Free Slug Cannon | -7/Zion | Free Enh. Flamer | -7/Zion | Free Enh. Flexi-carbon Leg | -5/Factory | Scanalyzed Arm. Medium Treads | -5/Factory | Scanalyzed Adv. Shield Generator | -5/Factory | Scanalyzed Robot Schematics ------------------ B-48 Gladiator | -7/Zion | Archive B-36 Bruiser | -7/Zion | Archive S-27 Virus | -7/Zion | Archive Fabricated ------------ Adv. System Shield | x1 | -5/Factory | Preloaded Arm. Leg | x2 | -5/Factory Repaired ---------- Lgt. Armor Plating | 36% | -7/Factory Enh. Flexi-carbon Leg | 15% | -5/Factory Alien Tech Used ----------------- None Achievements -------------- None Challenges ------------ None Game ------ Seed JammingLatentGun Manual? 0 Play Time 03:13:44 Cumulative 239.1 hours Start 2025.08.03 @ 12:01:52 End 2025.08.03 @ 17:43:16 Sessions 3 Manual Loads 0 Difficulty Rogue Special Mode None Game No. 117 Rogue 96 Adventurer 21 Explorer 0 Win Type - Total 11 Types 8/0/2/1/0/0/0/0/0/0 Lore% 46 Gallery% 64 Achievement% 60 Wizard Run 0 Options --------- Layout 1 ASCII 0 Keyboard 0 Movement Mouse Keybinds 0 Fullscreen 2 Font 32/SmallcapsGlow Map View 77x35 Zoom Use 0% Tactical HUD 1 Map Filters NONE Filters NONE Steam 1 RUN: ca06b64c-d905-4ec0-9221-084a14236858